bitfinex-derivatives/quotes_BTCF0:USTF0_20251129
["timestamp","ask_amount","ask_price","bid_price","bid_amount"]
[1764418090417,0.06659623,90820.0,90819.0,0.43114621]
[1764418094628,0.08031623,90820.0,90819.0,0.42013701]
[1764418094831,0.06659623,90820.0,90819.0,0.42013701]
[1764418096126,0.08031623,90820.0,90819.0,0.37601701]
[1764418096520,0.08031623,90820.0,90819.0,0.43114621]
[1764418098930,0.06659623,90820.0,90819.0,0.43114621]
[1764418100125,0.04355,90820.0,90819.0,0.43114621]
[1764418101316,0.04355,90820.0,90819.0,0.42013701]
[1764418103624,0.05626,90820.0,90819.0,0.42013701]
[1764418104228,0.02155,90820.0,90819.0,0.43296621]
[1764418104422,0.0557584,90826.0,90825.0,0.05776]
[1764418104623,0.07878365,90826.0,90825.0,0.05776]
[1764418105527,0.07878365,90826.0,90825.0,0.0687685]
[1764418106028,0.07978365,90826.0,90825.0,0.04594]
[1764418111130,0.07978365,90826.0,90825.0,0.0569485]
[1764418112623,0.07978365,90826.0,90825.0,0.04594]
[1764418121022,0.07978365,90826.0,90825.0,0.0569485]
[1764418121726,0.07978365,90826.0,90825.0,0.04594]
[1764418123746,0.0692991,90820.0,90819.0,0.37501701]
[1764418124037,0.34232435,90820.0,90819.0,0.37501701]
[1764418124548,0.34232435,90820.0,90819.0,0.36096521]
[1764418124841,0.0565902,90811.0,90810.0,0.3608]
[1764418125041,0.50961545,90811.0,90810.0,0.3608]
[1764418126039,0.50961545,90811.0,90810.0,0.3628]
[1764418127642,0.50961545,90811.0,90810.0,0.3608]
[1764418130437,0.50961545,90811.0,90810.0,0.38247]
[1764418130838,0.50961545,90811.0,90810.0,0.02167]
[1764418131447,0.0693705,90808.0,90807.0,0.03555066]
[1764418131740,0.4393705,90808.0,90807.0,0.03555066]
[1764418132243,0.4393705,90808.0,90807.0,0.05672066]
[1764418133639,0.4393705,90808.0,90807.0,0.05772066]
[1764418136647,0.46236786,90808.0,90807.0,0.05772066]
[1764418138041,0.44958786,90808.0,90807.0,0.05772066]
[1764418138241,0.0665905,90808.0,90807.0,0.05772066]
[1764418139948,0.2865905,90808.0,90807.0,0.05772066]
[1764418141442,0.0565905,90808.0,90807.0,0.05772066]
[1764418149658,0.0110105,90808.0,90807.0,0.07016066]
[1764418149862,0.3718092,90819.0,90818.0,0.04407]
[1764418149863,0.0552592,90819.0,90818.0,0.04407]
[1764418150156,0.07829295,90819.0,90818.0,0.04407]
[1764418150655,0.07829295,90819.0,90818.0,0.0550793]
[1764418151059,0.07929295,90819.0,90818.0,0.04407]
[1764418152657,0.08029295,90819.0,90818.0,0.04407]
[1764418154060,0.52029295,90819.0,90818.0,0.04407]
[1764418154866,0.28029295,90819.0,90818.0,0.04407]
[1764418155961,0.08029295,90819.0,90818.0,0.04407]
[1764418156150,0.06928375,90819.0,90818.0,0.04407]
[1764418156355,0.002,90819.0,90818.0,0.04407]
[1764418156556,0.002,90819.0,90818.0,0.10313981]
[1764418157055,0.002,90819.0,90818.0,0.04407]
[1764418157456,0.002,90819.0,90818.0,0.10313981]
[1764418157858,0.002,90819.0,90818.0,0.04407]
[1764418158262,0.002,90819.0,90818.0,0.05765447]
[1764418163678,0.00016491,90820.0,90819.0,0.4540492]
[1764418163679,4.91e-06,90820.0,90819.0,0.4540492]
[1764418165579,4.91e-06,90820.0,90819.0,0.1540492]
[1764418168079,4.91e-06,90820.0,90819.0,0.1560492]
[1764418168483,4.91e-06,90820.0,90819.0,0.5560492]
[1764418169682,4.91e-06,90820.0,90819.0,0.75899043]
[1764418170980,4.91e-06,90820.0,90819.0,0.45776545]
[1764418171183,4.91e-06,90820.0,90819.0,0.92843043]
[1764418171376,0.00010998,90846.0,90845.0,0.0563861]
[1764418171578,0.05807,90872.0,90871.0,0.0563829]
[1764418171786,0.93807,90872.0,90871.0,0.0563829]
[1764418172186,0.93807,90872.0,90871.0,0.04538]
[1764418172977,0.94407,90872.0,90871.0,0.04538]
[1764418174983,0.94407,90872.0,90871.0,0.02329]
[1764418175583,0.04428,90870.0,90869.0,0.3608]
[1764418175780,0.04428,90863.0,90862.0,0.00016512]
[1764418176383,0.0552839,90863.0,90862.0,0.00016512]
[1764418177587,0.0602839,90863.0,90862.0,0.00016512]
[1764418178190,0.0612839,90863.0,90862.0,0.00016512]
[1764418178390,0.0612839,90863.0,90862.0,0.01116912]
[1764418180497,0.0612839,90863.0,90862.0,0.02440412]
[1764418182007,0.05028,90863.0,90862.0,0.06978412]
[1764418186094,0.07321593,90863.0,90862.0,0.06978412]
[1764418186696,0.05028,90863.0,90862.0,0.06978412]
[1764418186896,0.07321602,90863.0,90862.0,0.06978412]
[1764418187098,0.07321602,90863.0,90862.0,0.05878012]
[1764418187793,0.07321602,90863.0,90862.0,0.01340012]
[1764418190201,0.05028,90863.0,90862.0,0.01340012]
[1764418191208,0.05028,90863.0,90862.0,0.05878012]
[1764418192298,0.05028,90863.0,90862.0,0.03669012]
[1764418192503,0.07324706,90863.0,90862.0,0.01340012]
[1764418194206,0.07324706,90863.0,90862.0,0.00016512]
[1764418194411,0.0552856,90849.0,90848.0,0.3608]
[1764418194899,0.0552856,90849.0,90848.0,0.3950957]
[1764418195510,0.0552856,90849.0,90848.0,0.38409]
[1764418195709,0.0552856,90849.0,90848.0,0.39776957]
[1764418196098,0.07828559,90849.0,90848.0,0.39776957]
[1764418196304,0.07828559,90849.0,90848.0,0.41985957]
[1764418197111,0.08028559,90849.0,90848.0,0.41985957]
[1764418198012,0.08028559,90849.0,90848.0,0.37447957]
[1764418198312,0.08028559,90849.0,90848.0,0.41977957]
[1764418199814,0.08028559,90849.0,90848.0,0.39698957]
[1764418200013,0.08028559,90849.0,90848.0,0.41977957]
[1764418200415,0.49028559,90849.0,90848.0,0.37447957]
[1764418200810,0.0553567,90840.0,90839.0,0.04546512]
[1764418201014,0.09140781,90840.0,90839.0,0.04546512]
[1764418202116,0.06737111,90840.0,90839.0,0.04546512]
[1764418202819,0.06737111,90840.0,90839.0,0.04646512]
[1764418203406,0.04435,90840.0,90839.0,0.04646512]
[1764418203908,0.04435,90840.0,90839.0,0.04546512]
[1764418204315,0.04435,90840.0,90839.0,0.0587831]
[1764418213420,0.05087,90840.0,90839.0,0.0359931]
[1764418213921,0.05087,90840.0,90839.0,0.0587831]
[1764418219528,0.04435,90840.0,90839.0,0.0587831]
[1764418221132,0.06731686,90840.0,90839.0,0.0587831]
[1764418221931,0.06731686,90840.0,90839.0,0.0697899]
[1764418222433,0.06731686,90840.0,90839.0,0.0587831]
[1764418225834,0.06733785,90840.0,90839.0,0.0587831]
[1764418231720,0.02298785,90840.0,90839.0,0.0587831]
[1764418237238,0.04613785,90840.0,90839.0,0.0587831]
[1764418237433,0.06861785,90840.0,90839.0,0.0587831]
[1764418239545,0.04613785,90840.0,90839.0,0.0587831]
[1764418239744,0.06861785,90840.0,90839.0,0.0587831]
[1764418240243,0.04563,90840.0,90839.0,0.0587831]
[1764418244740,0.05244,90840.0,90839.0,0.0587831]
[1764418245049,0.45543253,90840.0,90839.0,0.00016512]
[1764418245349,0.0692981,90828.0,90827.0,0.38187]
[1764418245537,0.09229063,90828.0,90827.0,0.40499]
[1764418247246,0.0692981,90828.0,90827.0,0.40499]
[1764418247647,0.0692981,90828.0,90827.0,0.38187]
[1764418247848,0.0692981,90828.0,90827.0,0.3928782]
[1764418248550,0.0692981,90828.0,90827.0,0.40499]
[1764418249947,0.0692981,90828.0,90827.0,0.41812074]
[1764418250753,0.48227184,90828.0,90827.0,0.37393074]
[1764418252451,0.48327184,90828.0,90827.0,0.37393074]
[1764418252848,0.48227184,90828.0,90827.0,0.37393074]
[1764418253052,0.48427184,90828.0,90827.0,0.37393074]
[1764418253249,0.48427184,90828.0,90827.0,0.3608]
[1764418256657,0.48427184,90828.0,90827.0,0.40585]
[1764418268257,0.48427184,90828.0,90827.0,0.38284]
[1764418268455,0.48427184,90828.0,90827.0,0.40585]
[1764418271066,0.48427184,90828.0,90827.0,0.3608]
[1764418271754,0.48427184,90828.0,90827.0,0.38284]
[1764418271958,0.48427184,90828.0,90827.0,0.3608]
[1764418273474,0.04863,90819.0,90818.0,0.02220512]
[1764418273666,0.49261294,90819.0,90818.0,0.04521512]
[1764418275469,0.08261294,90819.0,90818.0,0.04521512]
[1764418275668,0.25261294,90819.0,90818.0,0.04521512]
[1764418276970,0.25261294,90819.0,90818.0,0.05756322]
[1764418278774,0.08261294,90819.0,90818.0,0.05756322]
[1764418278970,0.41261294,90819.0,90818.0,0.05756322]
[1764418283973,0.07770294,90819.0,90818.0,0.05756322]
[1764418294679,0.02297374,90819.0,90818.0,0.05756322]
[1764418294882,0.02164,90824.0,90823.0,0.04518]
[1764418295180,0.06654089,90824.0,90823.0,0.04518]
[1764418296078,0.06754089,90824.0,90823.0,0.0561887]
[1764418301184,0.06754089,90824.0,90823.0,0.04518]
[1764418301385,0.50754089,90824.0,90823.0,0.04518]
[1764418304495,0.50754089,90824.0,90820.0,0.3608]
[1764418304702,0.0433,90821.0,90820.0,0.3608]
[1764418304902,0.49654089,90821.0,90820.0,0.40598]
[1764418321812,0.49654089,90821.0,90820.0,0.4169891]
[1764418322114,0.49654089,90821.0,90820.0,0.40598]
[1764418324521,0.15654089,90821.0,90820.0,0.40598]
[1764418326422,0.15654089,90821.0,90820.0,0.04518]
[1764418326721,0.15654089,90821.0,90820.0,0.40598]
[1764418327923,0.0575,90819.0,90818.0,0.03545322]
[1764418328221,0.46074089,90819.0,90818.0,0.03545322]
[1764418329824,0.46074089,90819.0,90818.0,0.01251322]
[1764418330011,0.0638603,90810.0,90809.0,0.38374]
[1764418330324,0.46710119,90810.0,90809.0,0.38374]
[1764418331125,0.46710119,90810.0,90809.0,0.3618]
[1764418331424,0.46710119,90810.0,90809.0,0.3648]
[1764418331825,0.46710119,90810.0,90809.0,0.004]
[1764418333114,0.0685107,90807.0,90802.0,0.01206291]
[1764418333318,0.0550311,90803.0,90802.0,0.01206291]
[1764418333518,0.66167199,90803.0,90802.0,0.01206291]
[1764418333720,0.0575,90801.0,90800.0,0.00016512]
[1764418333918,0.49074089,90801.0,90800.0,0.00016512]
[1764418335320,0.49374089,90801.0,90800.0,0.00016512]
[1764418340334,0.4705,90801.0,90800.0,0.00016512]
[1764418349541,0.49404482,90801.0,90800.0,0.00016512]
[1764418349937,0.05242,90792.0,90791.0,0.01234542]
[1764418350244,0.0684828,90789.0,90788.0,0.40596]
[1764418350437,0.4884828,90789.0,90788.0,0.40596]
[1764418351637,0.4894828,90789.0,90788.0,0.40596]
[1764418351839,0.4894828,90789.0,90788.0,0.3837]
[1764418353342,0.04462,90787.0,90786.0,0.01226267]
[1764418353540,0.46462,90787.0,90786.0,0.01226267]
[1764418353745,0.0674039,90780.0,90779.0,0.04532521]
[1764418354046,0.4574039,90780.0,90779.0,0.04532521]
[1764418354642,0.4574039,90780.0,90779.0,0.02306521]
[1764418354842,0.4574039,90780.0,90779.0,0.04532521]
[1764418355241,0.4574039,90780.0,90779.0,0.02306521]
[1764418355642,1.3374039,90780.0,90779.0,0.02306521]
[1764418355855,1.3374039,90780.0,90779.0,0.02406521]
[1764418356248,1.3374039,90780.0,90779.0,0.02506521]
[1764418356648,1.3374039,90780.0,90779.0,0.00216521]
[1764418359249,1.36080954,90780.0,90779.0,0.00216521]
[1764418363443,1.36080954,90780.0,90776.0,0.0001367]
[1764418363444,0.0684843,90777.0,90776.0,0.0001367]
[1764418363747,0.46188994,90777.0,90776.0,0.0001367]
[1764418364048,0.0556353,90769.0,90768.0,0.40596]
[1764418364246,0.65252094,90769.0,90768.0,0.40596]
[1764418364645,1.90252094,90769.0,90768.0,0.40596]
[1764418365049,1.90260072,90769.0,90768.0,0.40596]
[1764418365254,1.90260072,90769.0,90768.0,0.3608]
[1764418365457,1.90260072,90769.0,90768.0,0.3837]
[1764418365754,1.90260072,90769.0,90768.0,0.40596]
[1764418366149,1.90260072,90769.0,90768.0,0.3837]
[1764418366350,1.90260072,90769.0,90768.0,0.3648]
[1764418366756,1.90260072,90769.0,90768.0,0.3658]
[1764418367754,2.26340072,90769.0,90768.0,0.005]
[1764418370751,2.26338177,90769.0,90768.0,0.005]
[1764418370955,0.04462,90761.0,90759.0,0.00016521]
[1764418371153,0.99920503,90761.0,90759.0,0.00016521]
[1764418371354,0.99920503,90761.0,90760.0,0.3837]
[1764418371853,0.99920503,90761.0,90760.0,0.3608]
[1764418372455,0.99920503,90761.0,90760.0,0.3668]
[1764418372948,0.99920503,90761.0,90760.0,0.3678]
[1764418374263,0.99920503,90761.0,90760.0,0.41296]
[1764418377150,1.02259079,90761.0,90760.0,0.41296]
[1764418378452,0.99920503,90761.0,90760.0,0.41296]
[1764418378649,1.02259479,90761.0,90760.0,0.05216]
[1764418380268,1.02259479,90761.0,90760.0,0.0299]
[1764418380462,1.02259479,90761.0,90760.0,0.007]
[1764418384468,1.02259479,90761.0,90760.0,0.02831]
[1764418387373,1.02259479,90761.0,90760.0,0.04952]
[1764418396371,1.02259479,90761.0,90760.0,0.04852]
[1764418396980,1.02259479,90761.0,90760.0,0.04252]
[1764418396981,1.02559479,90761.0,90760.0,0.04252]
[1764418398678,1.02559479,90761.0,90760.0,0.02131]
[1764418398879,1.02559479,90761.0,90760.0,0.04259]
[1764418402583,1.02559479,90761.0,90759.0,0.00016521]
[1764418402881,0.06650976,90760.0,90759.0,0.02323521]
[1764418403089,0.86683976,90760.0,90759.0,0.04451521]
[1764418404082,0.86983976,90760.0,90759.0,0.04451521]
[1764418408796,0.81638976,90760.0,90759.0,0.45553171]
[1764418408994,0.373,90760.0,90759.0,0.45553171]
[1764418409196,0.373,90760.0,90759.0,0.51475955]
[1764418410194,0.373,90760.0,90759.0,0.45553171]
[1764418426821,0.39549,90760.0,90759.0,0.45553171]
[1764418427016,0.373,90760.0,90759.0,0.45553171]
[1764418430023,0.39549,90760.0,90759.0,0.45553171]
[1764418431024,0.39549,90760.0,90759.0,0.05553171]
[1764418433829,0.41814,90760.0,90759.0,0.45553171]
[1764418437436,0.39549,90760.0,90759.0,0.45553171]
[1764418437932,0.373,90760.0,90759.0,0.45553171]
[1764418444230,0.39429,90760.0,90759.0,0.45553171]
[1764418445637,0.41603,90760.0,90759.0,0.81633171]
[1764418447733,0.39429,90760.0,90759.0,0.81633171]
[1764418448532,0.41603,90760.0,90759.0,0.81633171]
[1764418450142,0.41503,90760.0,90759.0,0.81633171]
[1764418453938,0.41503,90760.0,90759.0,0.80531521]
[1764418455738,0.41503,90760.0,90759.0,0.81633171]
[1764418461031,0.41503,90760.0,90759.0,0.41633171]
[1764418463841,0.41503,90760.0,90759.0,0.81633171]
[1764418464551,0.41503,90760.0,90759.0,0.80531521]
[1764418467057,0.86205126,90760.0,90759.0,0.36096521]
[1764418467744,0.95017818,90760.0,90759.0,0.00016521]
[1764418468342,0.95017818,90760.0,90751.0,0.01233635]
[1764418468343,0.04358,90752.0,90751.0,0.01233635]
[1764418468548,0.04358,90751.0,90750.0,0.3608]
[1764418468754,0.89729126,90751.0,90750.0,0.3608]
[1764418469442,0.89738688,90751.0,90750.0,0.3608]
[1764418470850,0.0545986,90742.0,90741.0,0.00011053]
[1764418471054,1.06180906,90742.0,90741.0,0.00011053]
[1764418472340,1.0381186,90742.0,90741.0,0.00211053]
[1764418473347,1.03824429,90742.0,90741.0,0.00311053]
[1764418493063,1.03824429,90742.0,90726.0,0.04445556]
[1764418493064,0.0546004,90727.0,90726.0,0.04445556]
[1764418493262,0.83470011,90727.0,90726.0,0.00027556]
[1764418494569,0.83470011,90727.0,90726.0,0.00227556]
[1764418494961,0.83470011,90727.0,90726.0,0.01659468]
[1764418495264,0.83470011,90727.0,90726.0,0.01759468]
[1764418496360,0.85832827,90727.0,90726.0,0.00327556]
[1764418496566,0.0545121,90713.0,90712.0,0.4047]
[1764418496756,0.48462616,90713.0,90712.0,0.4047]
[1764418497965,0.48462616,90713.0,90712.0,0.4087]
[1764418498353,0.48462616,90713.0,90712.0,0.4107]
[1764418498761,0.48462616,90713.0,90712.0,0.42483425]
[1764418499367,0.48462616,90713.0,90712.0,0.42383425]
[1764418499863,0.48462616,90713.0,90712.0,0.42083425]
[1764418503665,0.48462616,90713.0,90712.0,0.37693425]
[1764418503865,0.93835356,90713.0,90712.0,0.37693425]
[1764418504867,0.93835356,90713.0,90712.0,0.39877425]
[1764418505963,0.93835356,90713.0,90712.0,0.002]
[1764418510370,0.71835356,90713.0,90712.0,0.0459]
[1764418512177,0.85835356,90713.0,90712.0,0.0459]
[1764418512863,0.58835356,90713.0,90712.0,0.0459]
[1764418513264,0.48462616,90713.0,90712.0,0.0459]
[1764418516361,0.5083407,90713.0,90712.0,0.0459]
[1764418518278,0.8983407,90713.0,90712.0,0.0459]
[1764418520177,1.7783407,90713.0,90712.0,0.0459]
[1764418526977,1.7783407,90713.0,90712.0,0.04546]
[1764418529983,1.77840899,90713.0,90712.0,0.04546]
[1764418531779,1.76738689,90713.0,90712.0,0.04546]
[1764418532082,0.45389689,90713.0,90712.0,0.40626]
[1764418532280,0.43011406,90713.0,90712.0,0.40626]
[1764418532677,0.00011406,90713.0,90712.0,0.40626]
[1764418532882,0.03011406,90713.0,90712.0,0.40626]
[1764418533078,0.00011406,90713.0,90712.0,0.80626]
[1764418533386,0.5880399,90732.0,90731.0,0.04346]
[1764418533585,1.38184916,90732.0,90731.0,0.04346]
[1764418533782,2.26184916,90732.0,90731.0,0.04346]
[1764418534780,0.0536407,90724.0,90723.0,0.40426]
[1764418534984,0.93744996,90724.0,90723.0,0.40426]
[1764418535877,0.93944996,90724.0,90723.0,0.40426]
[1764418536087,0.95222996,90724.0,90723.0,0.40426]
[1764418536379,0.9284207,90724.0,90723.0,0.40426]
[1764418536578,0.6584207,90724.0,90723.0,0.40426]
[1764418536785,0.9284207,90724.0,90723.0,0.40426]
[1764418537088,0.9284207,90724.0,90723.0,0.40526]
[1764418540287,0.95220063,90724.0,90723.0,0.40526]
[1764418541489,0.95220063,90724.0,90723.0,0.41887811]
[1764418541991,1.31300063,90724.0,90723.0,0.001]
[1764418544978,1.48660063,90724.0,90723.0,0.001]
[1764418545581,0.0536421,90713.0,90712.0,0.3608]
[1764418545785,1.03102203,90713.0,90712.0,0.3608]
[1764418547388,1.03102203,90713.0,90712.0,0.3618]
[1764418547893,1.03102203,90713.0,90712.0,0.3628]
[1764418549791,1.03102203,90713.0,90712.0,0.002]
[1764418552284,0.0110245,90693.0,90692.0,0.3608]
[1764418552494,0.4636445,90693.0,90692.0,0.3608]
[1764418553288,0.8936445,90693.0,90692.0,0.3608]
[1764418553494,0.89375313,90693.0,90692.0,0.3678]
[1764418553880,0.89375313,90693.0,90692.0,0.3628]
[1764418554081,0.89375313,90693.0,90692.0,0.3668]
[1764418554287,0.46375313,90693.0,90692.0,0.41026]
[1764418554592,0.63735313,90693.0,90692.0,0.41026]
[1764418555194,1.05735313,90693.0,90692.0,0.3668]
[1764418555490,1.08112432,90693.0,90692.0,0.3668]
[1764418556292,0.04262,90675.0,90674.0,0.40426]
[1764418556494,0.4526992,90675.0,90674.0,0.40426]
[1764418557396,0.4526992,90675.0,90674.0,0.40526]
[1764418557595,0.4556992,90675.0,90674.0,0.40526]
[1764418557892,0.4343992,90675.0,90674.0,0.40526]
[1764418558096,0.0030792,90675.0,90674.0,0.40526]
[1764418560398,0.0030792,90675.0,90674.0,0.4162868]
[1764418561300,0.0580959,90675.0,90674.0,0.40526]
[1764418561498,0.0470692,90675.0,90674.0,0.40526]
[1764418561694,0.0249292,90675.0,90674.0,0.40526]
[1764418562094,0.0030792,90675.0,90674.0,0.40526]
[1764418562292,0.4670692,90675.0,90674.0,0.40526]
[1764418563191,0.0470692,90675.0,90674.0,0.40526]
[1764418563499,0.4070692,90675.0,90674.0,0.40526]
[1764418568197,0.1449292,90675.0,90674.0,0.40526]
[1764418568389,0.4230792,90675.0,90674.0,0.40526]
[1764418569894,0.4449292,90675.0,90674.0,0.40526]
[1764418571205,0.4670692,90675.0,90674.0,0.40526]
[1764418574700,0.1430792,90675.0,90674.0,0.40526]
[1764418576007,0.1649292,90675.0,90674.0,0.40526]
[1764418576205,0.1430792,90675.0,90674.0,0.40526]
[1764418577705,0.0001654,90684.0,90683.0,0.0567257]
[1764418578011,0.0001654,90684.0,90683.0,0.4175257]
[1764418579104,0.00824359,90684.0,90683.0,0.4175257]
[1764418586507,0.00824359,90684.0,90683.0,0.43062712]
[1764418600310,0.4145429,90706.0,90705.0,0.05882]
[1764418600513,0.80865573,90706.0,90705.0,0.05882]
[1764418601412,0.41527283,90706.0,90705.0,0.05882]
[1764418601613,0.07411283,90706.0,90705.0,0.05882]
[1764418601909,0.059,90706.0,90705.0,0.05882]
[1764418602823,0.009,90706.0,90705.0,0.05882]
[1764418603409,0.0428854,90715.0,90714.0,0.04593]
[1764418603626,0.41698475,90715.0,90714.0,0.04593]
[1764418604218,0.41698475,90715.0,90714.0,0.056952]
[1764418604525,0.41798475,90715.0,90714.0,0.056952]
[1764418607422,0.41798475,90715.0,90714.0,0.04593]
[1764418607628,0.41798475,90715.0,90714.0,0.056952]
[1764418608533,0.0537429,90706.0,90705.0,0.05931666]
[1764418608832,0.4137429,90706.0,90705.0,0.05931666]
[1764418609626,0.40272,90706.0,90705.0,0.06131666]
[1764418617637,0.0213154,90715.0,90714.0,0.04421]
[1764418617939,0.4013154,90715.0,90714.0,0.40501]
[1764418618138,0.4235254,90715.0,90714.0,0.416032]
[1764418618736,0.4245254,90715.0,90714.0,0.416032]
[1764418623630,0.0011654,90715.0,90714.0,0.416032]
[1764418626238,0.02724,90721.0,90720.0,0.0686212]
[1764418626442,0.08984417,90721.0,90720.0,0.0686212]
[1764418626643,0.47205417,90721.0,90720.0,0.0686212]
[1764418626946,0.47205417,90721.0,90720.0,0.0576]
[1764418629047,0.47305417,90721.0,90720.0,0.0576]
[1764418630949,0.47205417,90721.0,90720.0,0.0576]
[1764418631243,0.47305417,90721.0,90720.0,0.0576]
[1764418633347,0.47305417,90721.0,90720.0,0.07083221]
[1764418634150,0.47205417,90721.0,90720.0,0.07083221]
[1764418634449,0.47305417,90721.0,90720.0,0.05744221]
[1764418637742,0.49740162,90721.0,90720.0,0.05744221]
[1764418641452,0.88740162,90721.0,90720.0,0.01323221]
[1764418641654,0.04362,90716.0,90715.0,0.3608]
[1764418641958,0.48796745,90716.0,90715.0,0.3608]
[1764418642747,0.49898915,90716.0,90715.0,0.3608]
[1764418643256,0.49898915,90716.0,90715.0,0.3732335]
[1764418643458,0.49898915,90716.0,90715.0,0.3959435]
[1764418643459,0.4746417,90716.0,90715.0,0.3959435]
[1764418643657,0.49900025,90716.0,90715.0,0.3959435]
[1764418644162,0.49900025,90716.0,90715.0,0.3732335]
[1764418644657,0.49900025,90716.0,90715.0,0.3959435]
[1764418645858,0.49900025,90716.0,90715.0,0.4295053]
[1764418646658,0.49900025,90716.0,90715.0,0.0687053]
[1764418646959,0.49900025,90716.0,90715.0,0.4295053]
[1764418648156,0.49900025,90716.0,90715.0,0.4184835]
[1764418648364,0.49900025,90716.0,90715.0,0.4295053]
[1764418649757,0.49900025,90716.0,90715.0,0.4184835]
[1764418649962,0.49900025,90716.0,90715.0,0.4295053]
[1764418651055,0.49900025,90716.0,90715.0,0.4184835]
[1764418651562,0.49900025,90716.0,90715.0,0.3732335]
[1764418653858,0.53752025,90716.0,90715.0,0.0124335]
[1764418654055,0.055083,90705.0,90704.0,0.4177]
[1764418654251,0.465083,90705.0,90704.0,0.4177]
[1764418654450,0.465083,90705.0,90704.0,0.40474]
[1764418654655,0.8695901,90705.0,90704.0,0.3608]
[1764418654959,0.6495901,90705.0,90704.0,0.3608]
[1764418655161,0.8595901,90705.0,90704.0,0.3608]
[1764418656062,0.6395901,90705.0,90704.0,0.3608]
[1764418656267,0.6395901,90705.0,90704.0,0.3648]
[1764418658555,0.6395901,90705.0,90704.0,0.38585]
[1764418659366,0.63956897,90705.0,90704.0,0.38585]
[1764418659561,0.63956897,90705.0,90704.0,0.02505]
[1764418659562,0.48956897,90705.0,90704.0,0.02505]
[1764418659773,0.48956897,90705.0,90704.0,0.004]
[1764418659774,0.86956897,90705.0,90704.0,0.004]
[1764418662462,0.055084,90697.0,90696.0,0.3820154]
[1764418662661,0.88956072,90697.0,90696.0,0.3609654]
[1764418662854,1.06328072,90697.0,90696.0,0.3609654]
[1764418663666,1.06328072,90697.0,90696.0,0.3619654]
[1764418663970,1.06328072,90697.0,90696.0,0.3669654]
[1764418665272,1.06328072,90697.0,90696.0,0.3830154]
[1764418665465,1.06328072,90697.0,90696.0,0.4089054]
[1764418665966,0.84328072,90697.0,90696.0,0.4089054]
[1764418667665,0.84328072,90697.0,90696.0,0.0481054]
[1764418669073,1.11328072,90697.0,90696.0,0.0041654]
[1764418674571,0.85328072,90697.0,90696.0,0.0041654]
[1764418674782,0.85328072,90697.0,90696.0,0.0252154]
[1764418675379,1.21408072,90697.0,90696.0,0.0252154]
[1764418675982,1.21408072,90697.0,90696.0,0.0041654]
[1764418676774,1.21408072,90697.0,90696.0,0.0252154]
[1764418679477,1.21408072,90697.0,90696.0,0.0261354]
[1764418679685,1.40408072,90697.0,90696.0,0.0261354]
[1764418683281,1.40408072,90697.0,90696.0,0.0041654]
[1764418684077,1.40408072,90697.0,90696.0,0.0484254]
[1764418684373,1.40408072,90697.0,90696.0,0.0261354]
[1764418685875,1.40408072,90697.0,90696.0,0.0041654]
[1764418688479,1.40408072,90697.0,90696.0,0.0261354]
[1764418688684,1.40408072,90697.0,90696.0,0.0484254]
[1764418689286,1.40408072,90697.0,90696.0,0.0041654]
[1764418690192,1.40408072,90697.0,90696.0,0.0261354]
[1764418691692,1.40408072,90697.0,90696.0,0.0041654]
[1764418693194,1.40408072,90697.0,90696.0,0.0261354]
[1764418694999,2.28408072,90697.0,90696.0,0.0261354]
[1764418695694,2.28408072,90697.0,90696.0,0.0484254]
[1764418696694,2.28408072,90697.0,90696.0,0.0261354]
[1764418700895,2.28408072,90697.0,90696.0,0.0494054]
[1764418701100,2.28408072,90697.0,90696.0,0.0041654]
[1764418701302,2.28408072,90697.0,90696.0,0.0257454]
[1764418702902,2.28408072,90697.0,90696.0,0.0623954]
[1764418703495,2.28408072,90697.0,90696.0,0.0490154]
[1764418704699,2.28408072,90697.0,90696.0,0.0257454]
[1764418704903,2.28408072,90697.0,90696.0,0.0041654]
[1764418706910,2.28408072,90697.0,90696.0,0.0257454]
[1764418707506,1.70887072,90697.0,90696.0,0.0617354]
[1764418707707,1.88255072,90697.0,90696.0,0.0617354]
[1764418708818,2.33255072,90697.0,90696.0,0.0617354]
[1764418709818,2.33255072,90697.0,90696.0,0.0484354]
[1764418713409,2.33255072,90697.0,90696.0,0.0617354]
[1764418713615,1.91255072,90697.0,90696.0,0.0617354]
[1764418720838,2.28255072,90697.0,90696.0,0.0617354]
[1764418721327,2.06255072,90697.0,90696.0,0.0617354]
[1764418723914,2.06255072,90697.0,90696.0,0.0484354]
[1764418724219,2.29255072,90697.0,90696.0,0.0041654]
[1764418725219,0.054976,90681.0,90680.0,0.40679]
[1764418725525,0.44945272,90681.0,90680.0,0.40679]
[1764418726632,0.44945272,90681.0,90680.0,0.41279]
[1764418726925,0.44945272,90681.0,90680.0,0.41379]
[1764418727129,0.81945272,90681.0,90680.0,0.3678]
[1764418727521,0.81945272,90681.0,90680.0,0.007]
[1764418727738,0.0549771,90672.0,90671.0,0.3609654]
[1764418728030,1.05313382,90672.0,90671.0,0.0001654]
[1764418728532,1.05313382,90672.0,90671.0,0.01278128]
[1764418729137,0.0549782,90663.0,90662.0,0.40679]
[1764418729434,0.4249782,90663.0,90662.0,0.40679]
[1764418729838,0.8697901,90663.0,90662.0,0.3608]
[1764418730234,0.4387619,90663.0,90662.0,0.40879]
[1764418730537,0.4670519,90663.0,90662.0,0.40879]
[1764418730732,0.4887619,90663.0,90662.0,0.40979]
[1764418731239,0.9287619,90663.0,90662.0,0.40979]
[1764418731933,0.9287619,90663.0,90662.0,0.3871]
[1764418732328,0.4887619,90663.0,90662.0,0.40979]
[1764418733238,0.46395,90663.0,90662.0,0.40979]
[1764418733830,0.46395,90663.0,90662.0,0.4208183]
[1764418734131,0.46395,90663.0,90662.0,0.40979]
[1764418734332,0.46395,90663.0,90662.0,0.4208183]
[1764418735037,0.46395,90663.0,90662.0,0.40979]
[1764418735736,0.42,90663.0,90662.0,0.40979]
[1764418736033,0.4749782,90663.0,90662.0,0.40979]
[1764418738141,0.46395,90663.0,90662.0,0.40979]
[1764418741535,0.44224,90663.0,90662.0,0.40979]
[1764418742143,0.46355,90663.0,90662.0,0.40979]
[1764418742642,0.42,90663.0,90662.0,0.40979]
[1764418743144,0.44204,90663.0,90662.0,0.40979]
[1764418743345,0.46335,90663.0,90662.0,0.40979]
[1764418743644,0.42,90663.0,90662.0,0.40979]
[1764418745032,0.4151767,90675.0,90674.0,0.04325]
[1764418745236,0.82989144,90675.0,90674.0,0.04325]
[1764418746238,0.8101767,90675.0,90674.0,0.04325]
[1764418749149,0.79915,90675.0,90674.0,0.04325]
[1764418750544,0.155,90675.0,90674.0,0.4150768]